bitfinex-derivatives/quotes_BTCF0:USTF0_20250207
["timestamp","ask_amount","ask_price","bid_price","bid_amount"]
[1738960380746,0.0782,96147.0,96143.0,0.2079917]
[1738960380944,0.3608,96153.0,96139.0,0.3608]
[1738960381245,0.18262067,96159.0,96150.0,0.2079761]
[1738960381547,0.18262067,96159.0,96158.0,0.2079599]
[1738960381744,0.18262067,96159.0,96151.0,0.1613]
[1738960381944,0.15252417,96154.0,96151.0,0.1713]
[1738960382349,0.15252417,96154.0,96151.0,0.0811]
[1738960382847,0.15252417,96154.0,96152.0,0.5687728]
[1738960383252,0.15252417,96154.0,96152.0,0.3608]
[1738960383556,0.15252417,96154.0,96146.0,0.1252]
[1738960384141,0.15552417,96154.0,96146.0,0.1252]
[1738960384348,0.3608,96147.0,96143.0,0.01660925]
[1738960384545,0.3608,96147.0,96143.0,0.00015597]
[1738960385352,0.3608,96147.0,96146.0,0.004]
[1738960386956,0.5717837,96147.0,96146.0,0.001]
[1738960387347,0.5757837,96147.0,96143.0,0.00015597]
[1738960387556,0.5727837,96147.0,96143.0,0.00015597]
[1738960387850,0.2079902,96144.0,96143.0,0.00015597]
[1738960389060,0.36836001,96147.0,96143.0,0.00015597]
[1738960389254,0.004,96144.0,96143.0,0.00015597]
[1738960389767,0.36064403,96138.0,96111.0,0.0837]
[1738960389950,0.7216,96117.0,96096.0,0.00092]
[1738960390149,0.3608,96103.0,96090.0,0.18701946]
[1738960390451,0.3608,96103.0,96093.0,0.18701946]
[1738960390650,0.3608,96102.0,96098.0,0.2080897]
[1738960391056,0.3608,96102.0,96095.0,0.01611428]
[1738960391452,0.3608,96102.0,96097.0,0.2080899]
[1738960391651,0.3608,96102.0,96100.0,0.103]
[1738960393857,0.3608,96102.0,96100.0,0.104]
[1738960394054,0.3608,96102.0,96100.0,0.3120843]
[1738960394448,0.00015606,96111.0,96109.0,0.2080638]
[1738960394657,0.3608,96122.0,96110.0,0.2080621]
[1738960394962,0.3608,96122.0,96101.0,0.26311946]
[1738960394963,0.3608,96122.0,96112.0,0.18701946]
[1738960395561,0.079,96136.0,96127.0,0.2080262]
[1738960396260,0.3608,96130.0,96122.0,0.00015606]
[1738960396453,0.3608,96129.0,96122.0,0.00015606]
[1738960396649,0.2080344,96124.0,96122.0,0.00015606]
[1738960396963,0.3608,96129.0,96100.0,0.1]
[1738960396964,0.4402,96129.0,96100.0,0.1]
[1738960397264,0.3608,96101.0,96100.0,0.1]
[1738960398660,0.3608,96101.0,96100.0,0.101]
[1738960399450,0.3608,96108.0,96100.0,0.105]
[1738960399653,0.00015606,96110.0,96100.0,0.105]
[1738960400359,0.00015606,96110.0,96103.0,0.3608]
[1738960400556,0.00015606,96110.0,96108.0,0.2080458]
[1738960400964,0.00215606,96110.0,96108.0,0.2080458]
[1738960401154,0.00215606,96110.0,96103.0,0.3608]
[1738960401356,0.00215606,96110.0,96104.0,0.05352808]
[1738960401557,0.00215606,96110.0,96109.0,0.2080451]
[1738960401757,0.00015606,96110.0,96109.0,0.2080451]
[1738960401955,0.00115606,96110.0,96109.0,0.2080451]
[1738960402163,0.00115606,96110.0,96109.0,0.26157063]
[1738960402461,0.00015606,96110.0,96109.0,0.26157063]
[1738960403166,0.00015606,96110.0,96109.0,0.31157063]
[1738960403363,0.36236095,96137.0,96109.0,0.05]
[1738960403567,0.36236095,96137.0,96121.0,0.3608]
[1738960403753,0.00156095,96137.0,96130.0,0.2079982]
[1738960403949,0.0797,96159.0,96134.0,0.3608]
[1738960404153,0.2079721,96143.0,96132.0,0.3608]
[1738960404358,0.3608,96148.0,96132.0,0.3608]
[1738960404558,0.005,96137.0,96133.0,0.3608]
[1738960404764,0.01,96137.0,96130.0,0.18701946]
[1738960404953,0.2079948,96133.0,96128.0,0.00015606]
[1738960405149,0.3608,96135.0,96128.0,0.00015606]
[1738960405455,0.3608,96129.0,96128.0,0.00015606]
[1738960405654,0.3608,96129.0,96105.0,0.12176]
[1738960405854,0.2080191,96122.0,96110.0,0.18701946]
[1738960406161,0.3608,96115.0,96110.0,0.18701946]
[1738960406461,0.5688343,96115.0,96105.0,0.12176]
[1738960406861,0.3608,96115.0,96105.0,0.12176]
[1738960407169,0.00015606,96124.0,96115.0,0.2080322]
[1738960407365,0.00015606,96124.0,96116.0,0.2080289]
[1738960407758,0.00015606,96124.0,96117.0,0.2080269]
[1738960408965,0.00215606,96124.0,96117.0,0.2080269]
[1738960409166,0.00615606,96124.0,96117.0,0.2080269]
[1738960409958,0.00615606,96124.0,96114.0,0.20372968]
[1738960410153,0.00615606,96124.0,96122.0,0.2080154]
[1738960410459,0.00115606,96124.0,96122.0,0.2080154]
[1738960410656,0.00115606,96124.0,96123.0,0.05356555]
[1738960410967,0.36195606,96124.0,96123.0,0.11996]
[1738960411362,0.2080863,96090.0,96089.0,0.00084]
[1738960411667,0.3608,96090.0,96089.0,0.0535727]
[1738960411968,0.3608,96090.0,96080.0,0.18701946]
[1738960412157,0.2080749,96096.0,96080.0,0.18701946]
[1738960412356,0.3608,96096.0,96080.0,0.18701946]
[1738960412558,0.0827,96095.0,96080.0,0.18701946]
[1738960412754,0.0827,96095.0,96081.0,0.05569829]
[1738960413167,0.0827,96095.0,96078.0,0.12176]
[1738960413367,0.3608,96081.0,96063.0,0.1216]
[1738960413568,0.3608,96081.0,96070.0,0.05568622]
[1738960413757,0.3608,96081.0,96071.0,0.05568622]
[1738960413758,0.2081091,96080.0,96071.0,0.05568622]
[1738960413955,0.2081091,96080.0,96070.0,0.18701946]
[1738960414155,0.3608,96081.0,96070.0,0.18701946]
[1738960414970,0.001,96080.0,96071.0,0.5739257]
[1738960415265,0.001,96080.0,96071.0,0.3658]
[1738960415772,0.2081135,96078.0,96071.0,0.3658]
[1738960415978,0.001,96080.0,96071.0,0.3658]
[1738960416269,0.3608,96073.0,96071.0,0.005]
[1738960416572,0.3608,96073.0,96070.0,0.19201946]
[1738960416766,0.3608,96073.0,96071.0,0.004]
[1738960416961,0.3618,96080.0,96071.0,0.004]
[1738960417172,0.3608,96072.0,96071.0,0.009]
[1738960417668,0.3608,96072.0,96071.0,0.004]
[1738960417878,0.3608,96072.0,96071.0,0.05966289]
[1738960418067,0.3608,96072.0,96071.0,0.18022289]
[1738960418266,0.33477603,96072.0,96071.0,0.18022289]
[1738960418467,0.001,96072.0,96071.0,0.18122289]
[1738960418673,0.001,96072.0,96071.0,0.27479039]
[1738960418973,0.3608,96080.0,96071.0,0.18706289]
[1738960419275,0.3608,96080.0,96072.0,0.05566289]
[1738960419575,0.3608,96080.0,96073.0,0.05566289]
[1738960419870,0.3608,96080.0,96074.0,0.05566289]
[1738960420261,0.3618,96080.0,96075.0,0.17578289]
[1738960420460,0.002,96080.0,96076.0,0.3608]
[1738960420657,0.002,96080.0,96076.0,0.41646289]
[1738960420858,0.002,96080.0,96077.0,0.07192582]
[1738960421061,0.002,96080.0,96077.0,0.26377639]
[1738960421272,0.002,96080.0,96078.0,0.07192554]
[1738960421474,0.001,96080.0,96079.0,0.05566289]
[1738960421769,0.002,96080.0,96079.0,0.06566289]
[1738960421976,0.001,96080.0,96079.0,0.06566289]
[1738960422168,0.002,96080.0,96079.0,0.06566289]
[1738960423064,0.001,96080.0,96079.0,0.07366289]
[1738960423263,0.001,96080.0,96079.0,0.08992567]
[1738960423670,0.001,96080.0,96079.0,0.09492567]
[1738960423869,0.0827,96095.0,96080.0,0.2081067]
[1738960424168,0.0827,96095.0,96091.0,0.3608]
[1738960424372,0.0827,96095.0,96092.0,0.05566289]
[1738960424577,0.0827,96095.0,96092.0,0.10566289]
[1738960424780,0.0827,96095.0,96093.0,0.05566289]
[1738960425071,0.0827,96095.0,96094.0,0.05566289]
[1738960425268,0.0827,96095.0,96094.0,0.14566289]
[1738960426067,0.0837,96095.0,96094.0,0.14566289]
[1738960426568,0.0847,96095.0,96094.0,0.14566289]
[1738960426872,0.0837,96095.0,96094.0,0.16111329]
[1738960427570,0.0837,96095.0,96094.0,0.16211329]
[1738960427771,0.0827,96095.0,96094.0,0.16511329]
[1738960428470,0.0827,96095.0,96094.0,0.16611329]
[1738960428866,0.0827,96095.0,96094.0,0.15066289]
[1738960429062,0.0827,96095.0,96094.0,0.1224]
[1738960429272,0.0827,96095.0,96094.0,0.005]
[1738960430769,0.0827,96095.0,96094.0,0.4158]
[1738960431065,0.0827,96095.0,96094.0,0.43727646]
[1738960431262,0.00015606,96098.0,96096.0,0.2080717]
[1738960431463,1e-08,96098.0,96097.0,0.01626002]
[1738960431776,1e-08,96098.0,96097.0,0.07149426]
[1738960431971,1e-08,96098.0,96097.0,0.14959426]
[1738960432475,1e-08,96098.0,96097.0,0.17560779]
[1738960432677,1e-08,96098.0,96097.0,0.17660779]
[1738960433568,1e-08,96098.0,96097.0,0.17560779]
[1738960433773,1e-08,96098.0,96097.0,0.23660779]
[1738960433968,1e-08,96098.0,96097.0,0.22772386]
[1738960434171,1e-08,96098.0,96097.0,0.61554032]
[1738960434875,1e-08,96098.0,96097.0,0.61854032]
[1738960435571,1e-08,96098.0,96097.0,0.61954032]
[1738960435776,0.00100001,96098.0,96097.0,0.62053709]
[1738960436279,0.00100001,96098.0,96097.0,0.59552278]
[1738960436483,0.00100001,96098.0,96097.0,0.62153732]
[1738960436779,0.00100001,96098.0,96097.0,0.61753732]
[1738960436975,0.00100001,96098.0,96097.0,0.62153732]
[1738960437175,0.00100001,96098.0,96097.0,0.62253732]
[1738960437877,0.00100001,96098.0,96097.0,0.15762287]
[1738960438077,0.0784,96113.0,96098.0,0.2080677]
[1738960438376,0.3608,96127.0,96112.0,0.3608]
[1738960438576,0.0748,96121.0,96113.0,0.01626038]
[1738960438766,0.0748,96121.0,96114.0,0.01626038]
[1738960438966,0.3608,96127.0,96120.0,0.208021]
[1738960439269,0.00015606,96133.0,96126.0,0.3608]
[1738960439469,0.00015606,96133.0,96127.0,0.07149048]
[1738960439675,0.00015606,96133.0,96128.0,0.01625624]
[1738960439875,0.00015606,96133.0,96129.0,0.07145424]
[1738960440076,0.00015606,96133.0,96124.0,0.3608]
[1738960440275,0.006,96127.0,96125.0,0.01625512]
[1738960440481,0.006,96127.0,96126.0,0.4160011]
[1738960440680,0.006,96127.0,96126.0,0.43225583]
[1738960441574,0.009,96127.0,96126.0,0.0552011]
[1738960441782,0.003,96127.0,96121.0,0.11616]
[1738960441989,0.003,96127.0,96122.0,0.05507586]
[1738960442187,0.003,96127.0,96121.0,0.11616]
[1738960442387,0.003,96127.0,96122.0,0.0550664]
[1738960442685,0.005,96127.0,96123.0,0.3608]
[1738960443077,0.004,96127.0,96124.0,0.05506591]
[1738960443277,0.002,96127.0,96123.0,0.3608]
[1738960443678,0.002,96127.0,96124.0,0.0550576]
[1738960443988,0.001,96127.0,96123.0,0.3608]
[1738960444182,0.001,96127.0,96123.0,0.3618]
[1738960444374,0.001,96127.0,96123.0,0.001]
[1738960444983,0.001,96127.0,96124.0,0.002]
[1738960444984,0.3608,96125.0,96124.0,0.002]
[1738960445191,0.3608,96125.0,96112.0,0.11524]
[1738960445373,0.3608,96117.0,96113.0,0.01486768]
[1738960445983,0.0802,96130.0,96116.0,0.20803]
[1738960446189,0.0802,96130.0,96123.0,0.5688131]
[1738960446493,0.0802,96130.0,96124.0,0.2080106]
[1738960447085,0.0802,96130.0,96124.0,0.05]
[1738960447278,0.0852,96130.0,96124.0,0.05]
[1738960447586,0.0852,96130.0,96124.0,0.2580114]
[1738960447780,0.0802,96130.0,96124.0,0.2580114]
[1738960447987,0.0882,96130.0,96124.0,0.2580114]
[1738960448784,0.0882,96130.0,96124.0,0.27285969]
[1738960449286,0.006,96130.0,96124.0,0.06484829]
[1738960449598,0.0799,96147.0,96129.0,0.3608]
[1738960449889,0.0817,96153.0,96146.0,0.3608]
[1738960450086,0.0817,96153.0,96147.0,0.16943565]
[1738960450387,0.0817,96153.0,96148.0,0.05503565]
[1738960450693,0.00156046,96158.0,96149.0,0.05503565]
[1738960450880,0.00156046,96158.0,96154.0,0.3608]
[1738960451077,0.00015606,96160.0,96154.0,0.3608]
[1738960451483,0.15193726,96180.0,96159.0,0.3608]
[1738960451790,0.3608,96169.0,96160.0,0.19588969]
[1738960451997,0.3608,96161.0,96159.0,0.76984]
[1738960452294,0.3608,96161.0,96160.0,0.11404]
[1738960452480,0.3608,96161.0,96160.0,0.1138]
[1738960452677,0.4427,96161.0,96160.0,0.1138]
[1738960452880,0.6506327,96161.0,96160.0,0.1138]
[1738960453091,0.6506327,96161.0,96159.0,0.7708]
[1738960453288,0.6506327,96161.0,96159.0,0.64534]
[1738960453482,0.4507,96161.0,96160.0,0.001]
[1738960453681,0.4507,96161.0,96160.0,0.002]
[1738960453893,0.0899,96161.0,96160.0,0.002]
[1738960454282,0.008,96161.0,96160.0,0.002]
[1738960454478,0.008,96161.0,96160.0,0.001]
[1738960456099,0.00015606,96170.0,96160.0,0.002]
[1738960456390,0.0773,96183.0,96174.0,0.2079044]
[1738960456696,0.3608,96190.0,96167.0,0.3608]
[1738960456697,0.0764,96192.0,96179.0,0.207892]
[1738960456884,0.0764,96192.0,96186.0,0.3608]
[1738960457085,0.0764,96192.0,96187.0,0.05493349]
[1738960457387,0.0764,96192.0,96186.0,0.3608]
[1738960457791,0.0764,96192.0,96187.0,0.05490719]
[1738960457988,0.0764,96192.0,96186.0,0.3608]
[1738960458697,0.0764,96192.0,96186.0,0.37615705]
[1738960458991,0.0773,96198.0,96187.0,0.0548787]
[1738960459192,0.0773,96198.0,96188.0,0.124722]
[1738960459386,0.3608,96192.0,96188.0,0.11276]
[1738960459588,0.2078755,96188.0,96187.0,0.11272]
[1738960459790,0.3668,96192.0,96180.0,0.00015597]
[1738960459791,0.2078895,96181.0,96180.0,0.00015597]
[1738960459994,0.3608,96181.0,96159.0,0.64434]
[1738960460193,0.3608,96167.0,96160.0,0.124722]
[1738960460407,0.0764,96166.0,96159.0,0.64514]
[1738960460689,0.0764,96166.0,96159.0,0.65991435]
[1738960461090,0.2843231,96166.0,96159.0,0.65991435]
[1738960461293,0.2843231,96166.0,96124.0,0.3608]
[1738960461294,0.3608,96141.0,96110.0,0.124722]
[1738960461496,0.0764,96166.0,96107.0,0.3372248]
[1738960461497,0.3608,96108.0,96107.0,0.3372248]
[1738960461793,0.3608,96108.0,96107.0,0.32198008]
[1738960461991,0.3608,96108.0,96104.0,0.37111138]
[1738960462984,0.5688474,96108.0,96107.0,0.004]
[1738960464288,0.2080711,96097.0,96096.0,0.00015608]
[1738960464489,0.2080711,96097.0,96063.0,0.02602199]
[1738960464490,0.2081034,96083.0,96063.0,0.0828]
[1738960464692,0.2081034,96083.0,96066.0,0.11292]
[1738960464693,0.3608,96070.0,96066.0,0.11292]
[1738960464891,0.360915,96070.0,96069.0,0.26228629]
[1738960465292,0.000115,96070.0,96069.0,0.26228629]
[1738960465490,0.3608,96086.0,96069.0,0.09542685]
[1738960465698,0.00015608,96079.0,96076.0,0.1870799]
[1738960465994,0.00015608,96079.0,96077.0,0.05415639]
[1738960466203,0.00015608,96079.0,96078.0,0.05415639]
[1738960467294,0.36136001,96098.0,96078.0,0.05415639]
[1738960467295,0.36136001,96098.0,96078.0,0.19253549]
[1738960467487,0.3608,96098.0,96088.0,0.1870799]
[1738960467689,0.3608,96098.0,96089.0,0.05415639]
[1738960468087,0.3608,96098.0,96090.0,0.08017222]
[1738960468293,0.3608,96098.0,96091.0,0.08017222]
[1738960468488,0.3608,96098.0,96092.0,0.05415639]
[1738960468693,0.3628,96098.0,96093.0,0.19245183]
[1738960468896,0.3628,96098.0,96094.0,0.05415639]
[1738960469099,0.2080737,96096.0,96094.0,9e-08]
[1738960469295,0.2080971,96085.0,96084.0,0.00015608]
[1738960469602,0.3608,96085.0,96058.0,0.02602381]
[1738960469811,0.3608,96063.0,96062.0,0.11224]
[1738960469996,0.3608,96063.0,96062.0,0.1940148]
[1738960470196,0.3608,96063.0,96062.0,0.05575054]
[1738960470594,0.7216,96063.0,96030.0,0.1870799]
[1738960470800,0.3608,96050.0,96032.0,0.3608]
[1738960471011,0.3608,96050.0,96046.0,0.00015616]
[1738960471502,0.2081752,96049.0,96046.0,0.00015616]
[1738960471697,0.3608,96047.0,96046.0,0.00015616]
[1738960472404,0.3608,96047.0,96033.0,0.01529103]
[1738960472599,0.3608,96037.0,96030.0,0.1870799]
[1738960472809,0.3608,96037.0,96026.0,0.2082238]
[1738960473104,0.3608,96037.0,96027.0,0.05512903]
[1738960473310,0.3608,96037.0,96027.0,0.01]
[1738960474192,0.3618,96037.0,96028.0,0.1118]
[1738960474795,0.002,96037.0,96034.0,0.3608]
[1738960475000,0.001,96037.0,96035.0,0.05504403]
[1738960475197,0.3608,96036.0,96029.0,0.11376]
[1738960475400,0.3608,96036.0,96027.0,0.1910799]
[1738960475401,0.3608,96036.0,96028.0,0.004]
[1738960476109,0.3608,96036.0,96034.0,0.004]
[1738960477203,0.00172,96037.0,96035.0,0.2082055]
[1738960477506,0.3608,96064.0,96034.0,0.01907446]
[1738960477705,0.0647,96093.0,96034.0,0.01907446]
[1738960477706,0.3608,96041.0,96035.0,0.1142]
[1738960478298,0.001,96036.0,96035.0,0.1142]
[1738960478701,0.002,96036.0,96035.0,0.1142]
[1738960478900,0.00029189,96036.0,96035.0,0.3224055]
[1738960479209,0.2828622,96058.0,96042.0,0.2081902]
[1738960479407,0.3608,96068.0,96048.0,0.2081773]
[1738960479707,0.3608,96056.0,96048.0,0.2181773]
[1738960480705,0.3608,96056.0,96042.0,0.00315616]
[1738960480914,0.3608,96048.0,96043.0,0.1142]
[1738960481112,0.3608,96048.0,96043.0,0.1242]
[1738960481307,0.00015616,96062.0,96047.0,0.2081774]
[1738960481507,0.00015616,96062.0,96050.0,0.1870799]
[1738960481807,0.00015616,96062.0,96056.0,0.2081598]
[1738960482007,0.00015616,96062.0,96061.0,0.3608]
[1738960482306,0.36236185,96083.0,96061.0,0.39706504]
[1738960482501,0.36236185,96083.0,96070.0,0.1870799]
[1738960482810,0.36236185,96083.0,96071.0,0.11352]
[1738960483609,0.36636185,96083.0,96071.0,0.11352]
[1738960483811,0.36636185,96083.0,96072.0,0.2081249]
[1738960484006,0.00556185,96083.0,96072.0,0.2081249]
[1738960484211,0.00556185,96083.0,96075.0,0.2081171]
[1738960484406,0.00556185,96083.0,96078.0,0.3608]
[1738960484615,0.00856185,96083.0,96082.0,0.2081036]
[1738960485105,0.00456185,96083.0,96082.0,0.2081036]
[1738960485306,0.00756185,96083.0,96082.0,0.2081036]
[1738960485508,0.00015616,96087.0,96079.0,0.2081081]
[1738960486008,0.003,96083.0,96080.0,0.01626189]
[1738960486216,0.003,96083.0,96081.0,0.01626189]
[1738960486401,0.003,96083.0,96082.0,0.01626208]
[1738960486713,0.006,96083.0,96082.0,0.01626208]
[1738960487399,0.006,96083.0,96063.0,0.03252416]
[1738960487400,0.6638,96083.0,96064.0,0.03252561]
[1738960487709,0.7216,96065.0,96035.0,0.2082045]
[1738960487911,0.1870799,96074.0,96036.0,0.11252]
[1738960487912,0.3608,96037.0,96036.0,0.11252]
[1738960488414,0.3608,96037.0,96035.0,0.01399018]
[1738960488607,0.3608,96037.0,96036.0,0.1122]
[1738960489199,0.3608,96037.0,96036.0,0.1212]
[1738960489403,0.00015616,96046.0,96036.0,0.1712]
[1738960489611,0.3608,96058.0,96051.0,0.2081693]
[1738960489797,0.3608,96058.0,96051.0,0.2281693]
[1738960489997,0.3608,96058.0,96051.0,0.02]
[1738960490204,0.3608,96057.0,96051.0,0.02]
[1738960490410,0.3608,96057.0,96052.0,0.11172]
[1738960490612,0.3608,96057.0,96036.0,0.018]
[1738960490805,0.3608,96041.0,96037.0,0.16545029]
[1738960491010,0.3608,96041.0,96037.0,0.11164]
[1738960491211,0.3608,96041.0,96037.0,0.12164]
[1738960491909,0.3608,96041.0,96038.0,0.05384249]
[1738960492109,0.3618,96041.0,96039.0,0.05384249]
[1738960492410,0.3618,96041.0,96040.0,0.05384249]
[1738960493111,0.3618,96041.0,96040.0,0.06384249]
[1738960493819,0.23164661,96041.0,96040.0,0.06384249]
[1738960494114,0.23164661,96041.0,96040.0,0.07184249]
[1738960494316,0.22693176,96041.0,96040.0,0.18432483]
[1738960494611,0.36136001,96057.0,96040.0,0.54512483]
[1738960494807,0.00015616,96064.0,96047.0,0.1870799]
[1738960495004,0.00015616,96064.0,96062.0,0.2081453]
[1738960495204,0.00015616,96064.0,96063.0,0.16432249]
[1738960495917,0.00015616,96064.0,96063.0,0.19034743]
[1738960496316,0.00015616,96064.0,96063.0,0.30282977]
[1738960496819,0.00015616,96064.0,96063.0,0.31719146]
[1738960497621,0.00015616,96064.0,96063.0,0.32719146]
[1738960497811,0.00015616,96064.0,96063.0,0.30316652]
[1738960498212,0.00015616,96064.0,96063.0,0.30516652]
[1738960498525,0.00015616,96064.0,96063.0,0.30616652]
[1738960499515,0.28288806,96077.0,96072.0,0.2081238]
[1738960499719,0.28288806,96077.0,96073.0,0.01626415]
[1738960499920,0.28288806,96077.0,96074.0,0.04228685]
[1738960500115,0.28288806,96077.0,96075.0,0.04228685]
[1738960500317,0.28288806,96077.0,96076.0,0.07010666]
[1738960500519,0.28288806,96077.0,96076.0,0.09613013]
[1738960500721,0.28388806,96077.0,96076.0,0.07010666]
[1738960500917,0.2081218,96074.0,96065.0,0.10928]
[1738960501220,0.3608,96066.0,96063.0,0.005]
[1738960501413,0.3608,96066.0,96064.0,0.05239414]
[1738960501614,0.3608,96066.0,96065.0,0.05239414]
[1738960501821,0.3608,96068.0,96065.0,0.26053454]
[1738960502009,0.3608,96068.0,96065.0,0.05239414]
[1738960502210,0.3608,96068.0,96066.0,0.05239414]
[1738960502411,0.3608,96068.0,96067.0,0.05239414]
[1738960502825,0.00015616,96086.0,96067.0,0.13841995]
[1738960503126,0.3608,96097.0,96076.0,0.3741598]
[1738960503327,0.3608,96097.0,96095.0,0.2080752]
[1738960503516,0.15193726,96113.0,96096.0,0.07841995]
[1738960503717,0.12612242,96113.0,96103.0,0.3951379]
[1738960504031,0.12612242,96113.0,96104.0,0.18769008]
[1738960504032,0.3608,96111.0,96104.0,0.18769008]
[1738960504328,0.3608,96111.0,96105.0,0.07841008]
[1738960504526,0.3608,96111.0,96106.0,0.07841008]
[1738960504727,0.3608,96111.0,96107.0,0.07841008]
[1738960505024,0.3608,96111.0,96108.0,0.07841008]
[1738960505229,0.3608,96111.0,96109.0,0.07841008]
[1738960505417,0.3608,96111.0,96110.0,0.07841008]
[1738960505816,0.3608,96137.0,96110.0,0.09841008]
[1738960506015,0.3608,96148.0,96116.0,0.22419114]
[1738960506016,0.15862067,96124.0,96116.0,0.22419114]
[1738960506321,0.13736614,96124.0,96117.0,0.11092515]
[1738960506522,0.13736614,96124.0,96118.0,0.12708819]
[1738960506729,0.13736614,96124.0,96119.0,0.12708819]
[1738960506920,0.13736614,96124.0,96114.0,0.1870799]
[1738960506921,0.13736614,96124.0,96120.0,0.11092515]
[1738960507123,0.13936614,96124.0,96121.0,0.11092515]
[1738960507328,0.13936614,96124.0,96122.0,0.11092599]
[1738960507535,0.13736614,96124.0,96123.0,0.07841008]
[1738960507724,0.001,96124.0,96123.0,0.11092611]
[1738960507920,0.001,96124.0,96123.0,0.07841008]
[1738960508123,0.001,96124.0,96123.0,0.05239414]
[1738960508827,0.001,96124.0,96118.0,0.111]
[1738960509130,0.3608,96125.0,96119.0,0.05331539]
[1738960509330,0.3608,96125.0,96123.0,0.002]
[1738960509529,0.3608,96125.0,96123.0,0.003]
[1738960509723,0.3608,96125.0,96124.0,0.05331539]
[1738960510330,0.3608,96125.0,96123.0,0.001]
[1738960511532,0.0757,96124.0,96096.0,0.208073]
[1738960511729,0.3608,96105.0,96097.0,0.18636722]
[1738960511932,0.3608,96105.0,96099.0,0.05330405]
[1738960512131,0.3608,96105.0,96100.0,0.05330405]
[1738960512433,0.3608,96105.0,96101.0,0.05330405]
[1738960512732,0.3608,96105.0,96102.0,0.05330405]
[1738960512922,0.3608,96105.0,96097.0,0.29808722]
[1738960513120,0.3608,96099.0,96097.0,0.18636722]
[1738960513737,0.0817,96111.0,96101.0,0.2080615]
[1738960514040,0.0817,96111.0,96104.0,0.2080554]
[1738960514041,0.001,96105.0,96104.0,0.2080554]
[1738960514220,0.001,96105.0,96104.0,0.05331128]
[1738960515430,0.3608,96110.0,96104.0,0.05331128]
[1738960515631,0.3608,96110.0,96105.0,0.05331128]
[1738960515833,0.3608,96110.0,96098.0,0.00115607]
[1738960516036,0.3608,96110.0,96104.0,0.001]
[1738960516628,0.001,96110.0,96102.0,0.2080603]
[1738960516835,0.001,96110.0,96108.0,0.2080455]
[1738960517035,0.001,96110.0,96108.0,0.2180455]
[1738960517228,0.001,96110.0,96109.0,0.05333856]
[1738960517423,0.001,96110.0,96109.0,0.02]
[1738960517722,0.001,96110.0,96106.0,0.11136]
[1738960517928,0.001,96110.0,96107.0,0.0533371]
[1738960518129,0.001,96110.0,96108.0,0.0533371]
[1738960518437,0.001,96110.0,96106.0,0.11136]
[1738960518936,0.3608,96115.0,96109.0,0.002]
[1738960519530,0.3608,96115.0,96108.0,0.002]
[1738960520628,0.3608,96115.0,96106.0,0.11436]
[1738960521230,0.3608,96115.0,96109.0,0.001]
[1738960521632,0.00156127,96119.0,96111.0,0.2080487]
[1738960521834,0.00156127,96119.0,96117.0,0.2080347]
[1738960522135,0.00156127,96119.0,96117.0,0.2180347]
[1738960522635,0.3608,96118.0,96117.0,0.01]
[1738960522832,0.3608,96118.0,96109.0,0.1870799]
[1738960523028,0.3608,96118.0,96106.0,0.11136]
[1738960523233,0.3608,96118.0,96090.0,0.37344712]
[1738960523234,0.3608,96110.0,96090.0,0.37344712]
[1738960523435,0.3608,96101.0,96098.0,0.01409874]
[1738960523737,0.3608,96101.0,96098.0,0.00015607]
[1738960524434,0.3608,96109.0,96104.0,0.2080701]
[1738960524735,0.3608,96109.0,96098.0,0.02015607]
[1738960524736,0.3608,96108.0,96099.0,0.1870799]
[1738960524931,0.3608,96108.0,96098.0,0.00015607]
[1738960525127,0.3608,96108.0,96098.0,0.00315607]
[1738960525333,0.3608,96108.0,96098.0,0.19023597]
[1738960525734,0.3608,96099.0,96098.0,0.00315607]
[1738960525934,0.3608,96099.0,96098.0,0.00015607]
[1738960529245,0.3648,96099.0,96098.0,0.00015607]
[1738960529643,0.3608,96099.0,96098.0,0.00015607]
[1738960530242,0.3638,96099.0,96098.0,0.00015607]
[1738960531631,0.3608,96099.0,96098.0,0.00015607]
[1738960531835,0.3628,96099.0,96098.0,0.00015607]
[1738960532346,0.3638,96099.0,96098.0,0.00015607]
[1738960532838,0.3608,96099.0,96098.0,0.00015607]
[1738960533039,0.3618,96099.0,96098.0,0.00015607]
[1738960534738,0.5698824,96099.0,96098.0,0.00015607]
[1738960535445,0.5688824,96099.0,96098.0,0.00015607]
[1738960535632,0.5698824,96099.0,96098.0,0.00015607]
[1738960536751,0.5718824,96099.0,96098.0,0.00015607]
[1738960538143,0.3638,96099.0,96098.0,0.00015607]
[1738960540037,0.003,96099.0,96098.0,0.00015607]
[1738960540232,0.3608,96111.0,96098.0,0.02015607]
[1738960540436,0.3608,96111.0,96098.0,0.00015607]
[1738960540437,0.2080856,96100.0,96098.0,0.00015607]
[1738960540843,0.0826,96099.0,96098.0,0.00015607]
[1738960541342,0.0846,96099.0,96098.0,0.00015607]
[1738960541544,0.2081168,96084.0,96083.0,0.00156092]
[1738960541752,0.9297168,96084.0,96083.0,0.00156092]
[1738960541946,0.7216,96084.0,96077.0,0.23674332]
[1738960542250,0.2081298,96078.0,96077.0,0.23674332]
[1738960543842,0.2081298,96078.0,96068.0,0.12489914]
[1738960543843,0.2081431,96072.0,96068.0,0.12489914]
[1738960544043,0.3608,96069.0,96068.0,0.00015607]
[1738960544738,0.5219,96069.0,96057.0,0.00156153]
[1738960544946,0.5689736,96058.0,96057.0,0.00156153]
[1738960545353,0.52246001,96069.0,96057.0,0.00156153]
[1738960545354,0.44186001,96069.0,96057.0,0.00156153]
[1738960545555,0.3608,96069.0,96068.0,0.005]
[1738960546056,0.3608,96069.0,96068.0,0.008]
[1738960546353,0.3608,96069.0,96068.0,0.003]
[1738960546752,0.3608,96069.0,96059.0,0.2496423]
[1738960546951,0.5689325,96069.0,96068.0,0.004]
[1738960548153,0.3608,96069.0,96068.0,0.004]
[1738960549652,0.208126,96072.0,96068.0,0.004]
[1738960549850,0.3608,96076.0,96068.0,0.008]
[1738960550052,0.3608,96076.0,96069.0,0.082]
[1738960550260,0.5689169,96076.0,96070.0,0.1076]
[1738960550461,0.2081212,96074.0,96070.0,0.1076]